fUSD/lending_fUSD_20251206
["ID","MTS","AMOUNT","RATE_DAILY","PERIOD"]
[396522909,1765033797636,-542.16934686,0.00013359,2]
[396522910,1765033798040,1005.328262,0.00013292,2]
[396522911,1765033799560,-217.75805945,0.00013359,2]
[396522913,1765033802263,-152.23643076,0.00013358,2]
[396522914,1765033805640,-147.76356924,0.00013358,2]
[396522915,1765033805710,-14.41183676,0.00013358,2]
[396522916,1765033808574,-222.32551363,0.00013358,2]
[396522918,1765033810443,-422.76234728,0.00013358,2]
[396522919,1765033812038,-403.99664958,0.00013358,2]
[396522920,1765033814239,-136.50365275,0.00013358,2]
[396522921,1765033814301,-163.49634725,0.00013358,2]
[396522922,1765033814613,163.35,0.00010297,2]
[396522923,1765033816682,-96.50365275,0.00013358,2]
[396522924,1765033816756,-217.7046633,0.00013359,2]
[396522925,1765033817497,-8831.331738,0.00013359,2]
[396522927,1765033818278,-10000.01,0.00013359,2]
[396522928,1765033818548,-232.68572867,0.00013359,2]
[396522930,1765033821947,-272.32229199,0.00013291,2]
[396522931,1765033822344,1632.7,6.443e-05,2]
[396522932,1765033822598,1632.7,6.782e-05,2]
[396522933,1765033822774,1632.7,7.121e-05,2]
[396522935,1765033822965,1632.7,7.46e-05,2]
[396522936,1765033823602,1632.7,7.8e-05,2]
[396522937,1765033823707,1632.7,8.139e-05,2]
[396522938,1765033823796,-317.86186947,0.00013291,2]
[396522939,1765033823963,1632.7,8.478e-05,2]
[396522940,1765033824074,1632.7,8.817e-05,2]
[396522941,1765033824455,1632.7,9.156e-05,2]
[396522942,1765033824708,1632.7,9.495e-05,2]
[396522943,1765033824866,-2147.44790854,0.00013291,2]
[396522944,1765033824977,1632.7,9.834e-05,2]
[396522945,1765033825048,-5705.11418292,0.00013359,2]
[396522946,1765033825237,1632.7,0.00010173,2]
[396522947,1765033825309,1632.7,0.00010513,2]
[396522948,1765033825475,1632.7,0.00010852,2]
[396522951,1765033826080,1632.7,0.00011191,2]
[396522952,1765033826285,1632.7,0.0001153,2]
[396522955,1765033826544,1632.7,0.00011869,2]
[396522956,1765033826639,1632.7,0.00012208,2]
[396522957,1765033826717,1632.7,0.00012547,2]
[396522959,1765033827182,-294.65233182,0.00012886,2]
[396522968,1765033829287,-246.00727806,0.00012886,2]
[396522970,1765033831525,-219.08649978,0.00012886,2]
[396522987,1765033831762,-872.95389034,0.00012886,2]
[396522988,1765033831772,-4861.92298965,0.00013359,2]
[396522989,1765033831803,-23994.48583802,0.00013359,2]
[396522990,1765033831815,-4104.64981039,0.00013359,2]
[396522991,1765033831846,-390.37271931,0.00013359,2]
[396522992,1765033831890,-1554.14613501,0.00013359,2]
[396522993,1765033831901,-950.26546194,0.00013359,2]
[396523003,1765033837807,-3552.55084937,0.00013359,2]
[396523004,1765033837820,-599.86987956,0.00013359,2]
[396523005,1765033837843,-13747.96828321,0.00013359,2]
[396523006,1765033837854,-5739.18585998,0.00013359,2]
[396523007,1765033837865,-27733.41037172,0.00013359,2]
[396523048,1765033840309,-1.7e-07,0.00013359,2]
[396523049,1765033840360,-64609.79429862,0.00013359,2]
[396523050,1765033840396,-1725.12,0.00013359,2]
[396523051,1765033840526,-533.48447,0.00013359,2]
[396523087,1765033842826,-152087.46882136,0.00013359,2]
[396523088,1765033842838,-533.77998653,0.00013359,2]
[396523089,1765033843029,-5119.6000312,0.00013359,2]
[396523090,1765033843041,-438.0,0.00013359,2]
[396523100,1765033845768,-65756.82124958,0.00013359,2]
[396523101,1765033845783,-358.8,0.00013359,2]
[396523102,1765033850283,-5507.56298081,0.00013359,2]
[396523103,1765033850390,-717.78169879,0.00013359,2]
[396523104,1765033850452,-2946.04657978,0.00013359,2]
[396523105,1765033850466,-936.448801,0.00013359,2]
[396523107,1765033869561,500.0,1.37e-06,2]
[396523108,1765033869748,500.0,2.74e-06,2]
[396523109,1765033869880,500.0,4.11e-06,2]
[396523110,1765033869996,500.0,5.48e-06,2]
[396523111,1765033870137,500.0,6.85e-06,2]
[396523112,1765033870403,500.0,8.22e-06,2]
[396523113,1765033870733,474.10098332,9.59e-06,2]
[396523115,1765033873174,1124.0,1.37e-06,2]
[396523116,1765033873473,1124.0,2.74e-06,2]
[396523117,1765033873775,1124.0,4.11e-06,2]
[396523118,1765033874053,1124.0,5.48e-06,2]
[396523119,1765033874359,1124.0,6.85e-06,2]
[396523120,1765033874655,1124.0,8.22e-06,2]
[396523121,1765033874923,1124.0,9.59e-06,2]
[396523122,1765033875209,1124.0,1.096e-05,2]
[396523123,1765033875523,1124.0,1.233e-05,2]
[396523124,1765033875812,1124.0,1.37e-05,2]
[396523125,1765033876080,1124.0,1.507e-05,2]
[396523126,1765033876411,1124.0,1.644e-05,2]
[396523127,1765033876681,1124.0,1.781e-05,2]
[396523128,1765033876958,1124.0,1.918e-05,2]
[396523129,1765033877530,1124.0,2.055e-05,2]
[396523130,1765033878626,1124.0,2.192e-05,2]
[396523131,1765033879956,1124.0,2.329e-05,2]
[396523132,1765033881722,1124.0,2.466e-05,2]
[396523134,1765033884232,1124.0,2.603e-05,2]
[396523138,1765033886408,1124.0,2.74e-05,2]
[396523140,1765033889624,1124.0,2.877e-05,2]
[396523143,1765033893113,1124.0,3.014e-05,2]
[396523146,1765033896710,1134.65773014,3.151e-05,2]
[396523147,1765033898113,500.0,1.37e-06,2]
[396523148,1765033898387,500.0,2.74e-06,2]
[396523149,1765033898665,500.0,4.11e-06,2]
[396523150,1765033899152,293.8387652,5.48e-06,2]
[396523151,1765033900195,1317.0,1.37e-06,2]
[396523152,1765033900480,1317.0,2.74e-06,2]
[396523153,1765033901199,1317.0,4.11e-06,2]
[396523154,1765033901372,1317.0,5.48e-06,2]
[396523155,1765033901563,1317.0,6.85e-06,2]
[396523156,1765033901636,1317.0,8.22e-06,2]
[396523157,1765033901940,1317.0,9.59e-06,2]
[396523159,1765033902220,1317.0,1.096e-05,2]
[396523161,1765033902527,1317.0,1.233e-05,2]
[396523162,1765033902861,967.78586295,1.37e-05,2]
[396523163,1765033902890,349.21413705,1.37e-05,2]
[396523165,1765033903135,1317.0,1.507e-05,2]
[396523167,1765033903411,1317.0,1.644e-05,2]
[396523168,1765033903690,1317.0,1.781e-05,2]
[396523170,1765033910009,1317.0,1.918e-05,2]
[396523171,1765033910297,1317.0,2.055e-05,2]
[396523172,1765033910888,1317.0,2.192e-05,2]
[396523173,1765033911788,1317.0,2.329e-05,2]
[396523174,1765033912991,1317.0,2.466e-05,2]
[396523175,1765033914485,1317.0,2.603e-05,2]
[396523176,1765033916291,1317.0,2.74e-05,2]
[396523177,1765033918385,1317.0,2.877e-05,2]
[396523178,1765033920752,1317.0,3.014e-05,2]
[396523179,1765033923526,1326.79378913,3.151e-05,2]
[396523183,1765033927316,555.03343298,1.37e-06,2]
[396523184,1765033929326,3934.0,1.37e-06,2]
[396523185,1765033929604,3934.0,2.74e-06,2]
[396523186,1765033929746,3934.0,4.11e-06,2]
[396523187,1765033929928,3934.0,5.48e-06,2]
[396523188,1765033930216,3934.0,6.85e-06,2]
[396523189,1765033930530,280.66461369,8.22e-06,2]
[396523190,1765033930556,3653.33538631,8.22e-06,2]
[396523191,1765033930784,3934.0,9.59e-06,2]
[396523192,1765033931256,3934.0,1.096e-05,2]
[396523194,1765033931551,3934.0,1.233e-05,2]
[396523195,1765033931794,3934.0,1.37e-05,2]
[396523196,1765033932090,3934.0,1.507e-05,2]
[396523197,1765033932892,3934.0,1.644e-05,2]
[396523199,1765033933383,3934.0,1.781e-05,2]
[396523200,1765033933591,3934.0,1.918e-05,2]
[396523201,1765033934103,3934.0,2.055e-05,2]
[396523202,1765033934880,3934.0,2.192e-05,2]
[396523203,1765033935887,594.33669816,2.329e-05,2]
[396523204,1765033935915,3339.66330184,2.329e-05,2]
[396523205,1765033936673,3934.0,2.466e-05,2]
[396523206,1765033937295,3934.0,2.603e-05,2]
[396523207,1765033937573,3934.0,2.74e-05,2]
[396523208,1765033937751,3934.0,2.877e-05,2]
[396523209,1765033937924,3934.0,3.014e-05,2]
[396523210,1765033938106,3937.31868315,3.151e-05,2]
[396523213,1765033942208,250.0,2.026e-05,2]
[396523214,1765033942502,1159.0,1.37e-06,2]
[396523215,1765033942737,1159.0,2.74e-06,2]
[396523216,1765033943544,1159.0,4.11e-06,2]
[396523217,1765033943657,1159.0,5.48e-06,2]
[396523218,1765033943901,1159.0,6.85e-06,2]
[396523219,1765033944202,1159.0,8.22e-06,2]
[396523221,1765033944544,290.59023546,9.59e-06,2]
[396523222,1765033944572,868.40976454,9.59e-06,2]
[396523223,1765033944786,1159.0,1.096e-05,2]
[396523226,1765033945076,1159.0,1.233e-05,2]
[396523227,1765033945396,1159.0,1.37e-05,2]
[396523229,1765033945834,1159.0,1.507e-05,2]
[396523230,1765033948997,1159.0,1.644e-05,2]
[396523231,1765033949309,1159.0,1.781e-05,2]
[396523232,1765033949610,1159.0,1.918e-05,2]
[396523233,1765033949893,1159.0,2.055e-05,2]
[396523234,1765033950678,1159.0,2.192e-05,2]
[396523235,1765033951590,1159.0,2.329e-05,2]
[396523236,1765033952771,1159.0,2.466e-05,2]
[396523237,1765033954539,1159.0,2.603e-05,2]
[396523238,1765033956304,1159.0,2.74e-05,2]
[396523239,1765033958520,1159.0,2.877e-05,2]
[396523242,1765033960846,1159.0,3.014e-05,2]
[396523243,1765033963537,1172.79106849,3.151e-05,2]
[396523244,1765033965204,500.0,1.37e-06,2]
[396523245,1765033965293,500.0,2.74e-06,2]
[396523246,1765033965385,500.0,4.11e-06,2]
[396523247,1765033965537,500.0,5.48e-06,2]
[396523248,1765033965804,500.0,6.85e-06,2]
[396523249,1765033966116,500.0,8.22e-06,2]
[396523250,1765033966407,500.0,9.59e-06,2]
[396523251,1765033966688,500.0,1.096e-05,2]
[396523252,1765033966954,500.0,1.233e-05,2]
[396523253,1765033967290,500.0,1.37e-05,2]
[396523254,1765033967569,500.0,1.507e-05,2]
[396523255,1765033967843,500.0,1.644e-05,2]
[396523256,1765033968132,160.51483663,1.781e-05,2]
[396523258,1765033975556,500.0,1.37e-06,2]
[396523259,1765033975721,500.0,2.74e-06,2]
[396523260,1765033975790,500.0,4.11e-06,2]
[396523261,1765033975943,414.43809419,5.48e-06,2]
[396523263,1765033977921,500.0,1.37e-06,2]
[396523264,1765033978216,500.0,2.74e-06,2]
[396523265,1765033978490,154.92436985,4.11e-06,2]
[396523269,1765033980490,500.0,1.37e-06,2]
[396523270,1765033980759,500.0,2.74e-06,2]
[396523272,1765033981247,500.0,4.11e-06,2]
[396523274,1765033981531,500.0,5.48e-06,2]
[396523275,1765033981790,500.0,6.85e-06,2]
[396523276,1765033981951,-311.45385723,0.00013259,2]
[396523277,1765033982383,500.0,8.22e-06,2]
[396523278,1765033982572,500.0,9.59e-06,2]
[396523279,1765033982695,500.0,1.096e-05,2]
[396523280,1765033982952,500.0,1.233e-05,2]
[396523281,1765033983236,500.0,1.37e-05,2]
[396523282,1765033983304,250.0,2.301e-05,2]
[396523283,1765033983526,500.0,1.507e-05,2]
[396523284,1765033983793,500.0,1.644e-05,2]
[396523285,1765033984156,500.0,1.781e-05,2]
[396523287,1765033984412,500.0,1.918e-05,2]
[396523288,1765033984578,-271.42053813,0.00013259,2]
[396523289,1765033984684,500.0,2.055e-05,2]
[396523290,1765033985263,500.0,2.192e-05,2]
[396523294,1765033986789,500.0,2.329e-05,2]
[396523295,1765033987054,-505.008021,0.00013225,2]
[396523296,1765033987116,-11.62631425,0.00013259,2]
[396523297,1765033987551,542.4838213,2.466e-05,2]
[396523298,1765033989369,-197.25401558,0.00013259,2]
[396523299,1765033990960,-416.53052725,0.00013259,2]
[396523300,1765033991081,500.0,1.37e-06,2]
[396523301,1765033991370,500.0,2.74e-06,2]
[396523302,1765033991714,500.0,4.11e-06,2]
[396523303,1765033992001,500.0,5.48e-06,2]
[396523305,1765033992314,500.0,6.85e-06,2]
[396523306,1765033992557,500.0,8.22e-06,2]
[396523307,1765033992844,500.0,9.59e-06,2]
[396523308,1765033993138,500.0,1.096e-05,2]
[396523309,1765033993409,500.0,1.233e-05,2]
[396523310,1765033993523,-250.0,0.00013134,2]
[396523311,1765033993583,-401.05276483,0.00013259,2]
[396523312,1765033993745,500.0,1.37e-05,2]
[396523313,1765033994005,500.0,1.507e-05,2]
[396523314,1765033994565,500.0,1.644e-05,2]
[396523315,1765033994672,500.0,1.781e-05,2]
[396523316,1765033995179,-270.32820595,0.00012892,2]
[396523317,1765033995817,500.0,1.918e-05,2]
[396523318,1765033996671,574.2362757,2.055e-05,2]
[396523319,1765033997893,-250.0,0.00012892,2]
[396523320,1765033998075,164.88602456,1.37e-06,2]
[396523323,1765034000260,-160.06638997,0.00012892,2]
[396523325,1765034001140,500.0,1.37e-06,2]
[396523326,1765034001469,500.0,2.74e-06,2]
[396523327,1765034001730,356.7251833,4.11e-06,2]
[396523328,1765034003068,150.0,1.37e-06,2]
[396523329,1765034003261,-157.90268983,0.00012831,2]
[396523330,1765034003339,150.0,2.74e-06,2]
[396523331,1765034003630,173.97609419,4.11e-06,2]
[396523332,1765034005298,-300.0,0.00012831,2]
[396523334,1765034008902,-42.09731017,0.00012831,2]
[396523335,1765034008964,-125.49106693,0.00012892,2]
[396523336,1765034010653,-164.37742808,0.00012892,2]
[396523337,1765034012489,-169.92881942,0.00012892,2]
[396523338,1765034014085,-459.80808965,0.00012892,2]
[396523339,1765034014143,-94.54409895,0.00013259,2]
[396523341,1765034016601,-235.07836633,0.00013259,2]
[396523342,1765034021962,500.0,1.37e-06,2]
[396523343,1765034022483,500.0,2.74e-06,2]
[396523344,1765034022781,500.0,4.11e-06,2]
[396523345,1765034023065,500.0,5.48e-06,2]
[396523346,1765034023369,500.0,6.85e-06,2]
[396523347,1765034023633,500.0,8.22e-06,2]
[396523348,1765034023966,500.0,9.59e-06,2]
[396523349,1765034024226,500.0,1.096e-05,2]
[396523350,1765034024738,500.0,1.233e-05,2]
[396523351,1765034025246,500.0,1.37e-05,2]
[396523352,1765034025450,500.0,1.507e-05,2]
[396523353,1765034025579,500.0,1.644e-05,2]
[396523354,1765034025858,500.0,1.781e-05,2]
[396523355,1765034026189,156.59661348,1.918e-05,2]
[396523356,1765034027369,659.0,1.37e-06,2]
[396523357,1765034027645,659.0,2.74e-06,2]
[396523358,1765034027907,659.0,4.11e-06,2]
[396523359,1765034028171,659.0,5.48e-06,2]
[396523360,1765034028452,659.0,6.85e-06,2]
[396523361,1765034029090,659.0,8.22e-06,2]
[396523362,1765034029297,659.0,9.59e-06,2]
[396523363,1765034029770,659.0,1.096e-05,2]
[396523364,1765034029855,659.0,1.233e-05,2]
[396523365,1765034030224,659.0,1.37e-05,2]
[396523366,1765034030724,659.0,1.507e-05,2]
[396523368,1765034031206,659.0,1.644e-05,2]
[396523369,1765034031504,659.0,1.781e-05,2]
[396523370,1765034031800,659.0,1.918e-05,2]
[396523371,1765034032009,465.48686071,1.37e-06,2]
[396523372,1765034032311,659.0,2.055e-05,2]
[396523373,1765034033017,659.0,2.192e-05,2]
[396523374,1765034033891,659.0,2.329e-05,2]
[396523375,1765034034400,150.0,1.37e-06,2]
[396523376,1765034034770,150.0,2.74e-06,2]
[396523377,1765034035040,154.19787838,4.11e-06,2]
[396523378,1765034035174,659.0,2.466e-05,2]
[396523379,1765034036653,659.0,2.603e-05,2]
[396523380,1765034038034,-500.0,0.00013433,3]
[396523381,1765034038414,659.0,2.74e-05,2]
[396523382,1765034038742,-500.0,0.00013433,3]
[396523384,1765034039608,-199.35315992,0.00013608,3]
[396523385,1765034040499,659.0,2.877e-05,2]
[396523386,1765034042828,500.0,1.37e-06,2]
[396523387,1765034042869,659.0,3.014e-05,2]
[396523388,1765034043120,500.0,2.74e-06,2]
[396523389,1765034043396,500.0,4.11e-06,2]
[396523390,1765034043682,500.0,5.48e-06,2]
[396523391,1765034043967,500.0,6.85e-06,2]
[396523392,1765034044247,500.0,8.22e-06,2]
[396523393,1765034044537,500.0,9.59e-06,2]
[396523394,1765034044814,500.0,1.096e-05,2]
[396523395,1765034045098,500.0,1.233e-05,2]
[396523396,1765034045390,175.11416424,1.37e-05,2]
[396523397,1765034045533,664.80080914,3.151e-05,2]
[396523398,1765034046525,502.0,1.37e-06,2]
[396523399,1765034046634,150.0,1.37e-06,2]
[396523400,1765034046798,502.0,2.74e-06,2]
[396523401,1765034046907,200.0,2.74e-06,2]
[396523403,1765034047243,502.0,4.11e-06,2]
[396523404,1765034047514,502.0,5.48e-06,2]
[396523405,1765034047847,502.0,6.85e-06,2]
[396523406,1765034048122,502.0,8.22e-06,2]
[396523407,1765034048397,502.0,9.59e-06,2]
[396523408,1765034048667,502.0,1.096e-05,2]
[396523409,1765034049511,502.0,1.233e-05,2]
[396523410,1765034050297,502.0,1.37e-05,2]
[396523411,1765034050402,502.0,1.507e-05,2]
[396523412,1765034050478,502.0,1.644e-05,2]
[396523413,1765034050615,502.0,1.781e-05,2]
[396523414,1765034050716,-9.53021745,0.00013259,2]
[396523415,1765034050803,302.59788116,1.918e-05,2]
[396523416,1765034050834,199.40211884,1.918e-05,2]
[396523417,1765034050908,502.0,2.055e-05,2]
[396523418,1765034051476,502.0,2.192e-05,2]
[396523419,1765034051545,150.0,1.37e-06,2]
[396523420,1765034052349,502.0,2.329e-05,2]
[396523421,1765034053317,200.0,2.74e-06,2]
[396523422,1765034053742,502.0,2.466e-05,2]
[396523424,1765034055253,502.0,2.603e-05,2]
[396523427,1765034057250,502.0,2.74e-05,2]
[396523431,1765034059509,502.0,2.877e-05,2]
[396523436,1765034061941,502.0,3.014e-05,2]
[396523438,1765034064613,368.63246682,3.151e-05,2]
[396523439,1765034064842,150.0,1.37e-06,2]
[396523440,1765034066024,200.0,2.74e-06,2]
[396523441,1765034068896,500.0,1.37e-06,2]
[396523442,1765034069163,500.0,2.74e-06,2]
[396523443,1765034069464,304.69767392,4.11e-06,2]
[396523445,1765034071799,862.0,1.37e-06,2]
[396523446,1765034071896,862.0,2.74e-06,2]
[396523447,1765034072050,862.0,4.11e-06,2]
[396523448,1765034072144,862.0,5.48e-06,2]
[396523449,1765034072240,862.0,6.85e-06,2]
[396523450,1765034072487,862.0,8.22e-06,2]
[396523451,1765034072827,338.37101263,9.59e-06,2]
[396523452,1765034072855,523.62898737,9.59e-06,2]
[396523453,1765034073102,862.0,1.096e-05,2]
[396523454,1765034073348,862.0,1.233e-05,2]
[396523455,1765034073615,862.0,1.37e-05,2]
[396523456,1765034073886,862.0,1.507e-05,2]
[396523457,1765034074444,862.0,1.644e-05,2]
[396523458,1765034074734,862.0,1.781e-05,2]
[396523459,1765034075315,862.0,1.918e-05,2]
[396523460,1765034075414,862.0,2.055e-05,2]
[396523461,1765034075697,862.0,2.192e-05,2]
[396523462,1765034076486,862.0,2.329e-05,2]
[396523464,1765034077404,862.0,2.466e-05,2]
[396523465,1765034077831,150.0,1.37e-06,2]
[396523466,1765034078591,862.0,2.603e-05,2]
[396523468,1765034080071,862.0,2.74e-05,2]
[396523470,1765034082275,862.0,2.877e-05,2]
[396523471,1765034083124,150.0,2.74e-06,2]
[396523472,1765034084271,862.0,3.014e-05,2]
[396523473,1765034087258,871.07183188,3.151e-05,2]
[396523474,1765034088143,527.0,0.00012761,2]
[396523475,1765034088388,209.0,4.11e-06,2]
[396523477,1765034089157,150.0,0.00012761,2]
[396523478,1765034090209,150.0,0.00012761,2]
[396523479,1765034090276,-334.86645794,0.00012898,2]
[396523480,1765034090597,150.0,1.37e-06,2]
[396523481,1765034091759,-173.16906972,0.00012898,2]
[396523482,1765034095871,202.0,2.74e-06,2]
[396523483,1765034096773,-18.96447234,0.00012898,2]
[396523484,1765034096834,-239.35616823,0.00013035,2]
[396523486,1765034098284,-287.64383177,0.00013035,2]
[396523487,1765034098349,-21.01169538,0.00013172,2]
[396523488,1765034100646,-266.165,0.00013172,2]
[396523489,1765034104139,101.29368016,0.00012717,3]
[396523490,1765034104166,398.70631984,0.00012717,3]
[396523493,1765034108153,150.0,0.00012761,2]
[396523507,1765034144390,1852.42,0.00012707,2]
[396523514,1765034189370,-387.36223032,0.00013259,2]
[396523515,1765034193643,-270.59201047,0.00013259,2]
[396523516,1765034195306,-256.4503084,0.00013259,2]
[396523518,1765034199943,-266.52476134,0.00013259,2]
[396523519,1765034201691,-176.2579397,0.00013259,2]
[396523520,1765034203304,-298.72013057,0.00013259,2]
[396523521,1765034206736,-383.10947775,0.00013259,2]
[396523522,1765034209174,-281.8735946,0.00013259,2]
[396523523,1765034211526,-183.17123443,0.00013259,2]
[396523524,1765034213291,-196.79562983,0.00013259,2]
[396523525,1765034216037,-377.49156046,0.00013259,2]
[396523531,1765034219520,-410.6718391,0.00013259,2]
[396523532,1765034221762,-171.08071791,0.00013259,2]
[396523533,1765034223949,-241.32,0.00013259,2]
[396523534,1765034225590,-305.90846661,0.00013259,2]
[396523601,1765034230494,-350.07233169,0.00013259,2]
[396523602,1765034232731,-194.9915637,0.00013259,2]
[396523603,1765034234394,-219.49340791,0.00013259,2]
[396523604,1765034236553,-332.31856506,0.00013259,2]
[396523605,1765034238209,-227.18554992,0.00013259,2]
[396523606,1765034240040,-437.64522149,0.00013259,2]
[396523607,1765034241739,-213.03523409,0.00013259,2]
[396523608,1765034244277,-269.72401234,0.00013259,2]
[396523610,1765034246943,-257.28117799,0.00013259,2]
[396523611,1765034250259,-159.53965127,0.00013259,2]
[396523612,1765034253654,-308.03318091,0.00013259,2]
[396523614,1765034261898,-300.0,0.00013259,2]
[396523615,1765034264038,-319.14861743,0.00013259,2]
[396523616,1765034266413,-175.43869031,0.00013259,2]
[396523617,1765034268570,-159.82660581,0.00013259,2]
[396523618,1765034268635,-8.79122562,0.00013259,2]
[396523625,1765034321509,-544.51287438,0.00013259,2]
[396523626,1765034321579,-519.9107,0.00013259,2]
[396523627,1765034321650,-250.0,0.00013272,2]
[396523628,1765034321719,-1200.0,0.00013333,2]
[396523629,1765034321792,-834.0,0.00013333,2]
[396523630,1765034321862,-300.0,0.00013333,2]
[396523631,1765034322398,-2703.16285124,0.00013334,2]
[396523632,1765034327840,-4203.57512556,0.00013334,2]
[396523633,1765034327989,-1592.85974888,0.00013334,2]
[396523664,1765034425255,-259.0,0.00013259,2]
[396523665,1765034425327,-2500.0,0.00013259,2]
[396523666,1765034425402,-1443.20886991,0.00013327,2]
[396523667,1765034425699,-1595.59226018,0.00013334,2]
[396523669,1765034431143,-404.40773982,0.00013334,2]
[396523670,1765034431212,-200.0,0.00013334,2]
[396523671,1765034431282,-250.0,0.00013335,2]
[396523672,1765034431351,-1321.78390386,0.00013336,2]
[396523673,1765034431426,-300.0,0.00013349,2]
[396523674,1765034431502,-300.0,0.00013349,2]
[396523675,1765034431582,-300.0,0.00013349,2]
[396523676,1765034431659,-1200.0,0.00013349,2]
[396523677,1765034431735,-150.0,0.0001335,2]
[396523678,1765034431811,-226.51671264,0.0001335,2]
[396523679,1765034432657,-694.59328736,0.0001335,2]
[396523681,1765034435139,-417.5779397,0.0001335,2]
[396523682,1765034435218,-500.0,0.0001335,2]
[396523683,1765034435295,-500.0,0.0001335,2]
[396523684,1765034435372,-500.0,0.0001335,2]
[396523685,1765034435452,-500.0,0.0001335,2]
[396523686,1765034435535,-500.0,0.0001335,2]
[396523687,1765034435611,-500.0,0.0001335,2]
[396523688,1765034435689,-500.0,0.0001335,2]
[396523689,1765034435766,-500.0,0.0001335,2]
[396523690,1765034435844,-500.0,0.0001335,2]
[396523691,1765034437037,-164.8541206,0.0001335,2]
[396523692,1765034439190,150.0,0.00013234,120]
[396523707,1765034472154,-340.06901067,0.00013128,2]
[396523709,1765034476228,-190.30420666,0.00013128,2]
[396523712,1765034478455,-250.04532576,0.00013128,2]
[396523716,1765034480063,-193.23830077,0.00013128,2]
[396523717,1765034484672,-263.13576124,0.00013128,2]
[396523724,1765034517111,-221.45366069,0.00013128,2]
[396523725,1765034520634,-41.75373421,0.00013128,2]
[396523726,1765034520697,-150.0,0.00013234,2]
[396523727,1765034520759,-44.20498802,0.00013259,2]
[396523731,1765034522716,-191.25801198,0.00013259,2]
[396523732,1765034522781,-64.21354047,0.00013259,2]
[396523734,1765034525511,-259.96103131,0.00013259,2]
[396523735,1765034527220,-322.74596515,0.00013259,2]
[396523736,1765034528818,-187.62675037,0.00013259,2]
[396523737,1765034532574,-170.77752617,0.00013259,2]
[396523746,1765034585782,-1200.0,0.00013258,2]
[396523747,1765034586131,-2095.51521347,0.00013259,2]
[396523748,1765034586268,-3408.97957306,0.00013259,2]
[396523749,1765034592051,-453.87958622,0.00012897,2]
[396523750,1765034592164,-10000.01,0.00012897,2]
[396523751,1765034596101,-267.61661922,0.00012897,2]
[396523752,1765034597617,-199.45,0.00012897,2]
[396523754,1765034599745,-293.73804115,0.00012897,2]
[396523758,1765034601380,-189.24141489,0.00012897,2]
[396523761,1765034603740,-203.2668536,0.00012897,2]
[396523762,1765034606676,-307.95153014,0.00012897,2]
[396523763,1765034608127,-302.82909798,0.00012897,2]
[396523764,1765034609788,-286.63954345,0.00012897,2]
[396523765,1765034611434,-193.0,0.00012897,2]
[396523766,1765034613061,-236.05885901,0.00012897,2]
[396523767,1765034617238,-195.0,0.00012897,2]
[396523768,1765034618477,-245.73222563,0.00012897,2]
[396523769,1765034622919,-183.66164507,0.00012897,2]
[396523770,1765034624734,-319.46173861,0.00012897,2]
[396523771,1765034626347,-297.18916507,0.00012897,2]
[396523780,1765034631975,-456.23748779,0.00012897,2]
[396523781,1765034634253,-166.68338286,0.00012897,2]
[396523782,1765034634816,2889.2046867,0.00025,120]
[396523783,1765034636405,-503.72178989,0.00012897,2]
[396523784,1765034640834,-345.95812001,0.00012897,2]
[396523785,1765034645809,-397.77773669,0.00012897,2]
[396523786,1765034649364,-409.40194065,0.00012897,2]
[396523787,1765034650651,-322.13409081,0.00012897,2]